bitfinex/quotes_BTCUSD_20251104
["timestamp","ask_amount","ask_price","bid_price","bid_amount"]
[1762254332825,0.92659062,103990.0,103980.0,1.81033161]
[1762254333495,0.92659062,103990.0,103980.0,1.09438182]
[1762254333706,0.92659062,103990.0,103980.0,1.81033161]
[1762254334134,0.92659062,103990.0,103980.0,1.61798693]
[1762254335476,0.92659062,103990.0,103980.0,0.90203714]
[1762254338584,0.92659062,103990.0,103980.0,0.70203714]
[1762254340130,0.92659062,103990.0,103980.0,0.89438182]
[1762254340781,0.92659062,103990.0,103980.0,0.70203714]
[1762254344230,0.92659062,103990.0,103980.0,0.65911714]
[1762254344450,0.92659062,103990.0,103980.0,0.63025072]
[1762254345107,0.92659062,103990.0,103980.0,0.59406844]
[1762254345341,0.92659062,103990.0,103980.0,0.63025072]
[1762254346812,0.92659062,103990.0,103980.0,0.59406844]
[1762254347977,0.90259062,103990.0,103980.0,0.59206844]
[1762254348220,0.91959062,103990.0,103980.0,0.59406844]
[1762254348434,0.93059062,103990.0,103980.0,0.59506844]
[1762254350265,0.97351062,103990.0,103980.0,0.59506844]
[1762254350696,0.93059062,103990.0,103980.0,0.59506844]
[1762254350904,0.97351062,103990.0,103980.0,0.63125072]
[1762254351988,0.93059062,103990.0,103980.0,0.63125072]
[1762254352175,0.93059062,103990.0,103980.0,0.8235954]
[1762254352388,0.91495145,103990.0,103980.0,0.8235954]
[1762254352601,0.91495145,103990.0,103980.0,0.75135742]
[1762254353062,0.91495145,103990.0,103980.0,0.63125072]
[1762254355787,0.91495145,103990.0,103980.0,0.9437021]
[1762254356029,0.91495145,103990.0,103980.0,0.9725698]
[1762254356258,0.88608754,103990.0,103980.0,0.9725698]
[1762254356491,0.85722363,103990.0,103980.0,1.68851959]
[1762254356730,0.82835972,103990.0,103980.0,0.66011842]
[1762254356978,0.79949581,103990.0,103980.0,0.63125072]
[1762254360358,0.79949581,103990.0,103980.0,0.59506844]
[1762254361715,0.84241581,103990.0,103980.0,0.59506844]
[1762254364841,0.65233408,103990.0,103980.0,0.59506844]
[1762254366181,0.60941408,103990.0,103980.0,1.29198514]
[1762254366690,0.60941408,103990.0,103980.0,1.09964046]
[1762254367702,0.60941408,103990.0,103980.0,1.29198514]
[1762254368171,0.55168662,103990.0,103980.0,1.1285083]
[1762254368388,0.52282289,103990.0,103980.0,1.32085298]
[1762254370617,0.49395916,103990.0,103980.0,1.32085298]
[1762254370794,0.46509543,103990.0,103980.0,1.32085298]
[1762254371010,0.4362317,103990.0,103980.0,1.1285083]
[1762254371219,0.40737142,103990.0,103980.0,0.66011856]
[1762254371559,0.37851114,103990.0,103980.0,0.62393628]
[1762254371737,0.37851114,103990.0,103980.0,0.66011856]
[1762254372641,0.37851114,103990.0,103980.0,1.1285083]
[1762254372874,0.37851114,103990.0,103980.0,1.32085298]
[1762254373840,0.32079058,103990.0,103980.0,1.32085298]
[1762254374038,0.32079058,103990.0,103980.0,1.1285083]
[1762254374264,0.32079058,103990.0,103980.0,1.1714283]
[1762254374469,0.32079058,103990.0,103980.0,1.17135431]
[1762254374672,0.32079058,103990.0,103980.0,1.17134453]
[1762254375030,0.32079058,103990.0,103980.0,1.13516225]
[1762254375239,0.32079058,103990.0,103980.0,1.17134453]
[1762254376738,0.32079058,103990.0,103980.0,1.36368921]
[1762254380353,0.29192834,103990.0,103980.0,1.36368921]
[1762254380959,0.26306821,103990.0,103980.0,1.36368921]
[1762254381686,0.23420808,103990.0,103980.0,1.71108921]
[1762254381870,0.20534795,103990.0,103980.0,1.60325235]
[1762254382068,0.14228011,103990.0,103980.0,1.80913331]
[1762254382265,0.07012978,103990.0,103980.0,4.6990266]
[1762254382445,0.01666965,103990.0,103980.0,4.6970266]
[1762254382753,0.0002,104030.0,104020.0,0.37618228]
[1762254382945,0.00029348,104030.0,104020.0,1.04717825]
[1762254383280,0.00125648,104030.0,104020.0,1.04717825]
[1762254383481,0.00125648,104030.0,104020.0,1.07603229]
[1762254384708,0.00125648,104030.0,104020.0,1.0884779]
[1762254385021,0.00225648,104030.0,104020.0,1.0884779]
[1762254385236,0.00425648,104030.0,104020.0,1.01741562]
[1762254385437,0.00425648,104030.0,104020.0,1.06029562]
[1762254386182,0.00425648,104030.0,104020.0,0.85706846]
[1762254386407,0.00425648,104030.0,104020.0,1.36155671]
[1762254387594,0.00425648,104030.0,104020.0,1.73851986]
[1762254387798,0.00425648,104030.0,104020.0,1.70895671]
[1762254388015,0.0002,104070.0,104030.0,1.03674048]
[1762254388189,0.00068595,104040.0,104030.0,1.18065048]
[1762254388798,0.00092664,104040.0,104030.0,1.18065048]
[1762254389147,0.00092664,104040.0,104030.0,1.20265048]
[1762254389367,0.00392664,104040.0,104030.0,1.20265048]
[1762254390032,0.00492664,104040.0,104030.0,1.21565048]
[1762254390519,0.00392664,104040.0,104030.0,1.20265048]
[1762254390722,0.00392664,104040.0,104030.0,1.20565048]
[1762254391023,0.00392664,104040.0,104030.0,1.20265048]
[1762254391231,0.00092664,104040.0,104030.0,0.71234451]
[1762254391452,0.00092664,104040.0,104030.0,1.18065048]
[1762254391664,0.00192664,104040.0,104030.0,1.18765048]
[1762254391909,0.00892664,104040.0,104030.0,1.18765048]
[1762254392112,0.00792664,104040.0,104030.0,1.18065048]
[1762254392850,0.02192664,104040.0,104030.0,1.18265048]
[1762254393478,0.02192664,104040.0,104030.0,1.21149942]
[1762254393714,0.02192664,104040.0,104030.0,0.74319345]
[1762254393911,0.02192664,104040.0,104030.0,1.21149942]
[1762254395473,0.02192664,104040.0,104030.0,1.24106257]
[1762254395684,0.51619261,104090.0,104050.0,0.03618228]
[1762254395899,0.46830597,104080.0,104060.0,0.51114]
[1762254396099,0.60060597,104080.0,104060.0,0.51114]
[1762254396309,0.03465,104080.0,104060.0,0.46465]
[1762254396520,0.51633836,104090.0,104070.0,0.1397]
[1762254396727,0.04803239,104090.0,104070.0,0.1397]
[1762254396928,0.51633836,104090.0,104080.0,0.019]
[1762254397172,0.51733836,104090.0,104080.0,0.019]
[1762254397379,0.61398836,104090.0,104080.0,0.019]
[1762254397584,0.63733836,104090.0,104080.0,0.019]
[1762254397764,0.63833836,104090.0,104080.0,0.019]
[1762254397968,0.43796301,104090.0,104080.0,0.019]
[1762254398109,0.43696301,104090.0,104070.0,0.13822]
[1762254398316,0.46830597,104080.0,104070.0,0.13822]
[1762254398528,0.46830597,104080.0,104070.0,0.04467]
[1762254398771,0.003,104090.0,104080.0,0.022]
[1762254398976,0.51346597,104090.0,104080.0,0.022]
[1762254399549,0.51346597,104090.0,104070.0,0.13991]
[1762254399550,0.086,104090.0,104070.0,0.13991]
[1762254399768,0.51046597,104080.0,104070.0,0.04636]
[1762254400178,0.51146597,104080.0,104070.0,0.05936]
[1762254400380,0.51046597,104080.0,104070.0,0.04636]
[1762254400581,0.51046597,104080.0,104070.0,0.11095]
[1762254400829,0.003,104080.0,104070.0,0.2405]
[1762254401029,0.003,104080.0,104070.0,0.2295]
[1762254401461,0.004,104080.0,104070.0,0.71080597]
[1762254401869,0.00496231,104080.0,104070.0,0.71080597]
[1762254402041,0.00496231,104080.0,104070.0,0.2425]
[1762254402469,0.00496231,104080.0,104070.0,0.71080597]
[1762254403083,0.00496231,104080.0,104070.0,0.2425]
[1762254403293,0.00496231,104080.0,104070.0,0.71080597]
[1762254403493,0.00496231,104080.0,104070.0,0.94582431]
[1762254403831,0.00496231,104080.0,104070.0,0.26034]
[1762254404037,0.00096231,104080.0,104070.0,0.71564597]
[1762254404272,0.00396231,104080.0,104070.0,0.74264597]
[1762254404504,0.00496231,104080.0,104070.0,1.09664597]
[1762254404635,0.00496231,104080.0,104070.0,1.28882431]
[1762254405244,0.00496231,104080.0,104070.0,1.32500659]
[1762254405452,0.00496231,104080.0,104070.0,1.13282825]
[1762254406258,0.00396231,104080.0,104070.0,1.08264597]
[1762254406660,0.00396231,104080.0,104070.0,1.08664597]
[1762254407075,0.00096231,104080.0,104070.0,1.05964597]
[1762254409768,0.00096231,104080.0,104070.0,0.59134]
[1762254409889,0.00096231,104080.0,104070.0,1.05964597]
[1762254410092,0.00096231,104080.0,104070.0,0.59134]
[1762254410299,0.00096231,104080.0,104070.0,1.05964597]
[1762254411770,0.00096231,104080.0,104070.0,1.01680597]
[1762254411978,0.00096231,104080.0,104070.0,0.2085]
[1762254412383,0.00096231,104080.0,104070.0,0.67680597]
[1762254413191,0.00096231,104080.0,104070.0,0.2085]
[1762254413789,0.53270828,104080.0,104070.0,0.004]
[1762254414339,0.46926828,104080.0,104070.0,0.06503]
[1762254414741,0.46926828,104080.0,104070.0,0.004]
[1762254414965,0.46926828,104080.0,104070.0,0.011]
[1762254415387,0.46926828,104080.0,104070.0,0.02]
[1762254415734,0.00096231,104080.0,104070.0,0.22117]
[1762254416358,0.46866729,104080.0,104070.0,0.11416]
[1762254416562,0.46866729,104080.0,104070.0,0.05413]
[1762254416779,0.46866729,104080.0,104070.0,0.02]
[1762254417425,0.46866729,104080.0,104070.0,0.009]
[1762254417658,0.46866729,104080.0,104060.0,0.09601]
[1762254417873,0.001,104080.0,104070.0,0.026]
[1762254418298,0.001,104080.0,104070.0,0.019]
[1762254418498,0.001,104080.0,104070.0,0.13316]
[1762254418703,0.04480231,104080.0,104070.0,0.22917]
[1762254420158,0.04380231,104080.0,104070.0,0.21017]
[1762254420346,0.04380231,104080.0,104070.0,0.008]
[1762254420509,0.57532744,104080.0,104070.0,0.008]
[1762254421029,0.00096231,104080.0,104070.0,0.05313]
[1762254421226,0.00096231,104080.0,104070.0,1.08769513]
[1762254421436,0.00096231,104080.0,104070.0,0.78453062]
[1762254421623,0.00096231,104080.0,104070.0,0.79153062]
[1762254421882,0.00096231,104080.0,104070.0,1.32305575]
[1762254422099,0.00096231,104080.0,104070.0,1.38971529]
[1762254422337,0.00096231,104080.0,104070.0,0.85819016]
[1762254422542,0.00096231,104080.0,104070.0,1.38971529]
[1762254423187,0.00096231,104080.0,104070.0,1.37571529]
[1762254423626,0.02196231,104080.0,104070.0,1.37671529]
[1762254425036,0.02196231,104080.0,104070.0,1.39887782]
[1762254425244,0.0002,104100.0,104090.0,0.54]
[1762254425468,0.0002,104100.0,104080.0,0.56770741]
[1762254425469,0.04568,104090.0,104080.0,0.56770741]
[1762254425674,0.04568,104090.0,104080.0,0.03618228]
[1762254425877,0.04568,104090.0,104080.0,0.82089728]
[1762254426084,0.00029336,104100.0,104080.0,0.91690728]
[1762254426314,0.00029336,104100.0,104090.0,0.59357927]
[1762254426517,0.00029336,104100.0,104090.0,0.86371882]
[1762254426724,0.00029336,104100.0,104090.0,0.95972882]
[1762254426928,0.00029336,104100.0,104090.0,1.29972882]
[1762254427485,0.00329336,104100.0,104090.0,1.33756292]
[1762254427876,0.00329336,104100.0,104090.0,1.32856292]
[1762254428295,0.00029336,104100.0,104090.0,1.32856292]
[1762254429520,0.01029336,104100.0,104090.0,1.32856292]
[1762254430145,0.01029336,104100.0,104090.0,0.79703779]
[1762254430354,0.01029336,104100.0,104090.0,1.32856292]
[1762254430714,0.01029336,104100.0,104090.0,0.79703779]
[1762254430916,0.01077433,104100.0,104090.0,1.32856292]
[1762254432186,0.01077433,104100.0,104090.0,1.33856291]
[1762254433255,0.00077433,104100.0,104090.0,0.79703779]
[1762254433469,0.00077433,104100.0,104090.0,1.52856292]
[1762254433672,0.01077433,104100.0,104090.0,1.52856292]
[1762254434292,0.01077433,104100.0,104090.0,1.53856291]
[1762254434461,0.01077433,104100.0,104090.0,1.74765611]
[1762254434879,0.04266,104140.0,104120.0,0.1920745]
[1762254435107,0.04280565,104140.0,104130.0,0.5926251]
[1762254435308,0.04280565,104140.0,104130.0,0.57341834]
[1762254435459,0.04329565,104140.0,104130.0,0.2348676]
[1762254436055,0.04329565,104140.0,104130.0,0.94826222]
[1762254436263,0.04280565,104140.0,104130.0,1.1907845]
[1762254436510,0.00064565,104140.0,104130.0,1.60390463]
[1762254436992,0.00064565,104140.0,104130.0,1.5307845]
[1762254437200,0.00064565,104140.0,104130.0,1.4473645]
[1762254437405,0.00113565,104140.0,104130.0,0.47587228]
[1762254437565,0.05014565,104140.0,104130.0,0.42798228]
[1762254437775,0.05014565,104140.0,104130.0,0.031]
[1762254438202,0.75555462,104170.0,104130.0,0.031]
[1762254438409,0.04264541,104170.0,104130.0,0.031]
[1762254438801,0.04264541,104170.0,104130.0,0.09809676]
[1762254439613,0.04264541,104170.0,104130.0,0.031]
[1762254440027,0.04264541,104170.0,104120.0,1.18861462]
[1762254440234,0.75604003,104170.0,104120.0,1.18861462]
[1762254440450,0.75604003,104170.0,104130.0,0.018]
[1762254440657,0.75604003,104170.0,104130.0,0.024]
[1762254440863,0.00096148,104140.0,104130.0,0.024]
[1762254441506,0.00096148,104140.0,104130.0,0.006]
[1762254441910,0.00096148,104140.0,104130.0,0.05389]
[1762254442118,0.00096148,104140.0,104130.0,1.4939845]
[1762254442814,0.04264541,104170.0,104160.0,0.00178521]
[1762254443389,0.04336618,104170.0,104160.0,0.00178521]
[1762254444124,0.04336618,104170.0,104160.0,0.02178521]
[1762254444518,0.7995608,104170.0,104130.0,0.37012]
[1762254444746,0.79884003,104170.0,104160.0,0.007]
[1762254444948,0.08544541,104170.0,104160.0,0.007]
[1762254445406,0.04264541,104170.0,104160.0,0.007]
[1762254446548,0.04864541,104170.0,104150.0,0.0428]
[1762254446965,0.04264541,104170.0,104150.0,0.0428]
[1762254447376,0.04264541,104170.0,104160.0,0.014]
[1762254447581,0.04264541,104170.0,104160.0,0.021]
[1762254447799,0.04264541,104170.0,104160.0,0.014]
[1762254447988,0.04264541,104170.0,104150.0,0.0428]
[1762254448416,0.04264541,104170.0,104150.0,0.0578]
[1762254449096,0.08544541,104170.0,104150.0,0.015]
[1762254449554,0.08544541,104170.0,104150.0,0.008]
[1762254449764,0.79884003,104170.0,104150.0,0.008]
[1762254449988,0.79884003,104170.0,104160.0,0.007]
[1762254450228,0.08544541,104170.0,104160.0,0.007]
[1762254450465,0.08616618,104170.0,104150.0,0.008]
[1762254450699,0.08544541,104170.0,104150.0,0.008]
[1762254450908,0.08544541,104170.0,104150.0,0.007]
[1762254451325,0.08544541,104170.0,104160.0,0.014]
[1762254451547,0.08544541,104170.0,104160.0,0.021]
[1762254452608,0.08544541,104170.0,104160.0,0.007]
[1762254452858,0.08544541,104170.0,104140.0,0.01920491]
[1762254453065,0.0428,104160.0,104150.0,0.021]
[1762254453486,0.0428,104160.0,104150.0,0.007]
[1762254453698,0.0428,104160.0,104130.0,1.10271462]
[1762254454630,0.0428,104160.0,104150.0,0.024]
[1762254455083,0.04264541,104170.0,104150.0,0.024]
[1762254455260,0.08544541,104170.0,104150.0,0.024]
[1762254455679,0.04264541,104170.0,104150.0,0.024]
[1762254455879,0.00048056,104160.0,104140.0,0.91504443]
[1762254456160,0.08544541,104170.0,104140.0,0.91504443]
[1762254456368,0.004,104160.0,104140.0,0.95784443]
[1762254456574,0.004,104160.0,104150.0,0.71339462]
[1762254456710,0.04264541,104170.0,104140.0,1.04994622]
[1762254456913,0.04264541,104170.0,104150.0,0.007]
[1762254457122,0.04264541,104170.0,104140.0,0.77219462]
[1762254457502,0.04264541,104170.0,104140.0,0.76419462]
[1762254457707,0.04264541,104170.0,104140.0,0.957846]
[1762254457932,0.04264541,104170.0,104140.0,0.971846]
[1762254458147,0.04264541,104170.0,104140.0,0.25845138]
[1762254458361,0.04264541,104170.0,104140.0,0.33081549]
[1762254458995,0.04264541,104170.0,104140.0,0.32121304]
[1762254459339,0.04264541,104170.0,104150.0,0.007]
[1762254459666,0.04264541,104170.0,104150.0,0.19902891]
[1762254459919,0.04264541,104170.0,104150.0,0.19202891]
[1762254460461,0.04264541,104170.0,104160.0,0.01920122]
[1762254460843,0.04264541,104170.0,104150.0,0.04020307]
[1762254461059,0.04264541,104170.0,104150.0,0.021]
[1762254462475,0.04264541,104170.0,104140.0,1.12231033]
[1762254462676,0.04264541,104170.0,104150.0,0.19203065]
[1762254462877,0.04264541,104170.0,104160.0,0.021]
[1762254463097,0.04264541,104170.0,104160.0,0.014]
[1762254463499,0.04336618,104170.0,104150.0,1.09664531]
[1762254463703,0.04264541,104170.0,104160.0,0.71339462]
[1762254464016,0.04264541,104170.0,104160.0,0.9682569]
[1762254464236,0.04264541,104170.0,104160.0,1.01143918]
[1762254464428,0.04336618,104170.0,104160.0,0.09903228]
[1762254464589,0.04336618,104170.0,104160.0,0.8124269]
[1762254465001,0.04336618,104170.0,104160.0,0.8137869]
[1762254465208,0.00120618,104170.0,104160.0,0.38899456]
[1762254465409,0.00120618,104170.0,104160.0,1.2503769]
[1762254465847,0.00120618,104170.0,104160.0,1.1537869]
[1762254466042,0.00120618,104170.0,104160.0,1.1677869]
[1762254466739,0.00120618,104170.0,104160.0,1.45638918]
[1762254466903,0.00120618,104170.0,104160.0,1.2643769]
[1762254467099,0.00120618,104170.0,104160.0,1.45638918]
[1762254467541,0.00120618,104170.0,104160.0,1.44238918]
[1762254467940,0.00120618,104170.0,104160.0,1.45838918]
[1762254468389,0.00120618,104170.0,104160.0,1.46538918]
[1762254468590,0.00120618,104170.0,104160.0,1.45838918]
[1762254469344,0.00120618,104170.0,104160.0,1.44238918]
[1762254469725,0.00120618,104170.0,104160.0,1.45638918]
[1762254470136,0.00120618,104170.0,104160.0,1.46538918]
[1762254471924,0.025,104180.0,104170.0,0.53199385]
[1762254472132,0.02514554,104180.0,104170.0,1.72095075]
[1762254472328,0.02514554,104180.0,104170.0,1.2861569]
[1762254472602,0.02514554,104180.0,104170.0,1.52095075]
[1762254473359,0.02514554,104180.0,104170.0,1.53295075]
[1762254473559,0.02514554,104180.0,104170.0,0.81955613]
[1762254473763,0.02514554,104180.0,104170.0,1.53295075]
[1762254474367,0.02514554,104180.0,104170.0,1.52095075]
[1762254475150,0.02914554,104180.0,104170.0,1.52095075]
[1762254476814,0.02724403,104180.0,104170.0,1.52095075]
[1762254479141,0.02724403,104180.0,104170.0,0.61556228]
[1762254479344,0.02724403,104180.0,104170.0,1.52095075]
[1762254479550,0.02724403,104180.0,104160.0,0.09659]
[1762254479768,0.10774403,104180.0,104150.0,1.2868725]
[1762254479968,0.10774403,104180.0,104160.0,0.38276]
[1762254480501,0.10374403,104180.0,104160.0,0.38276]
[1762254480977,0.10374403,104180.0,104160.0,0.57477008]
[1762254481141,0.10374403,104180.0,104160.0,0.38276]
[1762254481713,0.10184241,104180.0,104160.0,0.67136062]
[1762254482300,0.02134241,104180.0,104160.0,0.67136062]
[1762254482530,0.10184241,104180.0,104160.0,0.38276]
[1762254482735,0.10208261,104180.0,104160.0,0.57477166]
[1762254482938,0.02158261,104180.0,104160.0,0.57477166]
[1762254483092,0.02158261,104180.0,104170.0,0.01919938]
[1762254483273,0.02158261,104180.0,104170.0,0.47244938]
[1762254483490,0.02158261,104180.0,104170.0,0.64524385]
[1762254483686,0.02158261,104180.0,104170.0,0.45325]
[1762254485967,0.0785983,104170.0,104150.0,0.34]
[1762254486368,0.0785983,104170.0,104160.0,0.01920122]
[1762254486569,0.0785983,104170.0,104140.0,0.26275411]
[1762254486816,0.0805983,104170.0,104150.0,0.34]
[1762254487373,0.0785983,104170.0,104150.0,0.34]
[1762254487717,0.0806966,104170.0,104150.0,0.34]
[1762254488286,0.0806966,104170.0,104140.0,0.11512411]
[1762254488492,0.79409122,104170.0,104150.0,0.001]
[1762254488735,0.79409122,104170.0,104140.0,0.11512411]
[1762254488955,0.03454,104150.0,104140.0,0.04276]
[1762254490106,0.03454,104150.0,104130.0,0.38276]
[1762254490514,0.03854,104150.0,104130.0,0.04276]
[1762254490893,0.03854,104150.0,104120.0,0.43340528]
[1762254491297,0.04603186,104150.0,104120.0,0.43340528]
[1762254491505,0.0495,104140.0,104120.0,0.43340528]
[1762254491711,0.04808801,104140.0,104120.0,0.34160528]
[1762254491934,0.76148263,104140.0,104120.0,0.00160528]
[1762254492144,0.80424263,104140.0,104120.0,0.00160528]
[1762254492346,0.75615462,104140.0,104120.0,0.00160528]
[1762254492586,0.71339462,104130.0,104120.0,0.00160528]
[1762254492722,0.75425267,104140.0,104120.0,0.00409069]
[1762254492941,0.75425267,104140.0,104120.0,0.00209069]
[1762254493291,0.75425267,104140.0,104120.0,0.01009069]
[1762254493517,0.04554308,104150.0,104120.0,0.01009069]
[1762254493710,0.03454,104150.0,104120.0,0.02929929]
[1762254493916,0.03454,104150.0,104120.0,0.58398912]
[1762254493917,0.0773,104150.0,104120.0,0.58398912]
[1762254494133,0.0773,104150.0,104120.0,0.38229929]
[1762254494339,0.00048,104130.0,104120.0,0.36309069]
[1762254494544,0.00048,104130.0,104120.0,0.35009069]
[1762254494748,0.80781388,104150.0,104120.0,0.00209069]
[1762254494903,0.09441926,104150.0,104120.0,0.00209069]
[1762254495106,0.80781388,104150.0,104120.0,0.00909069]
[1762254495305,0.80781388,104150.0,104120.0,0.00209069]
[1762254495513,0.00048,104140.0,104120.0,0.00209069]
[1762254495709,0.00048,104140.0,104120.0,0.01109069]
[1762254495924,0.71339462,104140.0,104120.0,0.00209069]
[1762254496366,0.71380192,104140.0,104120.0,0.02409069]
[1762254496538,0.71380192,104140.0,104120.0,0.01709069]
[1762254496743,0.08599737,104150.0,104120.0,0.01709069]
[1762254496928,0.79979929,104150.0,104120.0,0.00209069]
[1762254497332,0.79979929,104150.0,104120.0,0.01509069]
[1762254497533,0.5308809,104140.0,104120.0,0.01509069]
[1762254497734,0.08599737,104150.0,104120.0,0.09566069]
[1762254497735,0.0744562,104150.0,104120.0,0.09566069]
[1762254497942,0.0744562,104150.0,104120.0,0.01009069]
[1762254498125,0.6053371,104150.0,104120.0,0.02109069]
[1762254498323,0.00048,104140.0,104120.0,0.01309069]
[1762254498801,0.60391521,104150.0,104120.0,0.02009069]
[1762254499135,0.60391521,104150.0,104120.0,0.2217808]
[1762254499332,0.60391521,104150.0,104120.0,0.00909069]
[1762254499534,0.60391521,104150.0,104120.0,0.00209069]
[1762254499759,0.5308809,104140.0,104120.0,0.02309069]
[1762254500168,0.5308809,104140.0,104120.0,0.01009069]
[1762254504130,0.5741609,104130.0,104120.0,0.00209069]
[1762254504530,0.5741609,104130.0,104120.0,0.00173069]
[1762254504772,0.5741609,104130.0,104070.0,0.07788164]
[1762254504976,0.5741609,104130.0,104070.0,0.02898729]
[1762254504977,0.03933,104080.0,104070.0,0.02898729]
[1762254505202,0.03933,104080.0,104070.0,0.00014565]
[1762254505949,0.5702109,104080.0,104070.0,0.00134827]
[1762254507171,0.03933,104080.0,104070.0,0.00134827]
[1762254507723,0.03882,104090.0,104070.0,1.28631642]
[1762254507926,0.03882,104110.0,104080.0,0.21137552]
[1762254508143,0.03882,104110.0,104090.0,0.19214064]
[1762254508330,0.03882,104110.0,104100.0,0.44773]
[1762254508554,0.03882,104110.0,104100.0,0.77622295]
[1762254508752,0.03882,104110.0,104100.0,0.49053]
[1762254508952,0.03882,104110.0,104100.0,0.42932]
[1762254509502,0.03882,104110.0,104100.0,0.0488]
[1762254510485,0.03882,104110.0,104100.0,0.0548]
[1762254510924,0.03691776,104110.0,104100.0,0.0548]
[1762254511576,0.03691776,104110.0,104100.0,0.012]
[1762254511951,0.03742776,104110.0,104100.0,0.012]
[1762254512362,0.5308809,104120.0,104100.0,0.012]
[1762254512515,0.02976,104110.0,104100.0,0.012]
[1762254513867,0.5606409,104110.0,104100.0,0.012]
[1762254514079,0.02976,104110.0,104100.0,0.012]
[1762254514465,0.0428,104110.0,104100.0,0.012]
[1762254514663,0.0428,104110.0,104070.0,0.04294565]
[1762254514900,0.0428,104110.0,104070.0,0.38294565]
[1762254515103,0.0428,104110.0,104070.0,0.68467173]
[1762254515345,0.0428,104110.0,104100.0,0.004]
[1762254515543,0.0428,104110.0,104070.0,0.68467173]
[1762254515955,0.0428,104110.0,104100.0,0.003]
[1762254516266,0.00999999,104130.0,104100.0,0.003]
[1762254516467,0.0428,104120.0,104090.0,0.5783809]
[1762254516637,0.0428,104120.0,104090.0,0.0475]
[1762254516837,0.00909775,104110.0,104090.0,0.6211809]
[1762254517042,0.00909775,104110.0,104090.0,0.0903]
[1762254517244,0.0428,104120.0,104090.0,0.0903]
[1762254517415,0.0428,104120.0,104090.0,0.2920484]
[1762254517612,0.0428,104120.0,104100.0,0.003]
[1762254517912,0.9136809,104130.0,104090.0,0.0903]
[1762254518313,0.9136809,104130.0,104090.0,0.10951414]
[1762254518615,0.9136809,104130.0,104090.0,0.11251414]
[1762254518759,0.9136809,104130.0,104090.0,0.10951414]
[1762254518964,0.9136809,104130.0,104090.0,0.11912121]
[1762254519144,0.9136809,104130.0,104090.0,0.12112121]
[1762254519347,0.5736809,104130.0,104100.0,0.0004809]
[1762254519542,0.5736809,104130.0,104090.0,0.29404765]
[1762254519896,0.5736809,104130.0,104090.0,0.92486855]
[1762254520200,0.03027431,104150.0,104120.0,0.0475]
[1762254520354,0.07307431,104150.0,104120.0,0.0667086]
[1762254520555,0.03027431,104150.0,104120.0,0.24919017]
[1762254520963,0.02837245,104150.0,104120.0,0.24919017]
[1762254521395,0.02837245,104150.0,104120.0,0.25119017]
[1762254521396,0.02885786,104150.0,104120.0,0.25119017]
[1762254521604,0.02885786,104150.0,104120.0,0.0591043]
[1762254521830,0.02885786,104150.0,104120.0,0.27039844]
[1762254522050,0.02885786,104150.0,104120.0,0.35112984]
[1762254522247,0.02885786,104150.0,104130.0,0.01920676]
[1762254522473,0.02885786,104150.0,104140.0,0.06028]
[1762254522752,0.02885786,104150.0,104140.0,0.01920491]
[1762254522984,0.02885786,104150.0,104130.0,0.14274]
[1762254523455,0.02885786,104150.0,104130.0,0.33680659]
[1762254523966,0.02885786,104150.0,104130.0,0.33480659]
[1762254524207,0.02885786,104150.0,104130.0,0.14474]
[1762254524434,0.02885786,104150.0,104140.0,0.0428]
[1762254524861,0.03185786,104150.0,104140.0,0.0428]
[1762254525088,0.029956,104150.0,104140.0,0.0428]
[1762254525324,0.042956,104150.0,104140.0,0.0428]
[1762254525541,0.039956,104150.0,104130.0,0.34]
[1762254525764,0.039956,104150.0,104140.0,0.0428]
[1762254525989,0.026956,104150.0,104140.0,0.0428]
[1762254526212,0.026956,104150.0,104140.0,0.24084916]
[1762254526429,0.026956,104150.0,104140.0,0.40171916]
[1762254526666,0.00048541,104150.0,104140.0,0.77790144]
[1762254526881,0.00048541,104150.0,104140.0,1.30878234]
[1762254527105,0.00048541,104150.0,104140.0,1.31278234]
[1762254528234,0.00048541,104150.0,104140.0,0.58985228]
[1762254529157,0.00048541,104150.0,104140.0,0.44749228]
[1762254529385,0.00048541,104150.0,104140.0,0.3928]
[1762254530069,0.52946459,104170.0,104140.0,0.3928]
[1762254530739,0.57327777,104180.0,104140.0,0.49236]
[1762254530943,0.57342331,104180.0,104140.0,0.49236]
[1762254531364,0.57342331,104180.0,104140.0,0.3888]
[1762254531808,0.57342331,104180.0,104140.0,0.3908]
[1762254532026,0.57342331,104180.0,104140.0,0.3828]
[1762254532027,0.5308809,104170.0,104140.0,0.3828]
[1762254532243,0.5308809,104170.0,104140.0,0.3858]
[1762254532898,0.5308809,104170.0,104140.0,0.3838]
[1762254533325,0.57152173,104180.0,104140.0,0.3838]
[1762254533548,0.57152173,104180.0,104140.0,0.48236]
[1762254533823,0.57152173,104180.0,104140.0,0.49196245]
[1762254534028,0.04064083,104180.0,104140.0,0.68801143]
[1762254534234,0.04064083,104180.0,104150.0,0.04594]
[1762254534447,0.06224083,104180.0,104150.0,0.06514307]
[1762254535085,0.06033924,104180.0,104150.0,0.06514307]
[1762254535498,0.06033924,104180.0,104150.0,0.04594]
[1762254536540,0.06033924,104180.0,104150.0,0.04694]
[1762254536932,0.59122014,104180.0,104150.0,0.1465]
[1762254537137,0.02053924,104180.0,104150.0,0.15610153]
[1762254537335,0.02053924,104180.0,104150.0,0.36206213]
[1762254537573,0.02053924,104180.0,104150.0,0.34813206]
[1762254538296,0.02053924,104180.0,104150.0,0.1465]
[1762254538423,0.02053924,104180.0,104150.0,0.16570307]
[1762254539141,0.01753924,104180.0,104150.0,0.1753046]
[1762254539347,0.01753924,104180.0,104150.0,0.16570307]
[1762254540341,0.01753924,104180.0,104150.0,0.36733504]
[1762254540562,0.01753924,104180.0,104150.0,0.16570307]
[1762254541389,0.54842014,104180.0,104150.0,0.44890307]
[1762254541562,0.54842014,104180.0,104150.0,0.341]
[1762254541917,0.54842014,104180.0,104150.0,0.38376]
[1762254542146,0.5308809,104170.0,104150.0,0.38376]
[1762254542341,0.54842014,104180.0,104150.0,0.38376]
[1762254542501,0.5308809,104170.0,104150.0,0.38376]
[1762254543041,0.5308809,104170.0,104150.0,0.341]
[1762254543163,0.5308809,104170.0,104150.0,0.343]
[1762254543370,0.54842014,104180.0,104150.0,0.343]
[1762254543582,0.04276,104170.0,104150.0,0.342]
[1762254543799,0.5736409,104170.0,104150.0,0.344]
[1762254544355,0.5736409,104170.0,104150.0,0.34]
[1762254544570,0.5736409,104170.0,104150.0,0.001]
[1762254544989,0.5736409,104170.0,104130.0,0.16231711]
[1762254545210,0.5716409,104170.0,104130.0,0.16231711]
[1762254545420,0.5716409,104170.0,104150.0,0.002]